Cogmind - Beta 10 X2 @@@ ROGUE MODE // 2020.07.01 @ 17:44:22 Player: Decinym Result: Destroyed by G-47 Trooper with Particle Gun Performance ------------- Evolutions (1) 500 Regions Visited (6) 1200 Robots Destroyed (78) 390 Value Destroyed (1512) 1512 Prototype IDs (1) 20 Alien Tech Used (0) 0 Bonus (14) 14 TOTAL SCORE: 3636 Bonus ------- Follower Combat Kills 14 Cogmind --------- Core Integrity 0/400 Matter 276/300 Energy 265/265 System Corruption 0% Temperature Cool (13) Movement Walking (180) Ox2 Location -8/Mines Parts ------- > --- POWER (1) -------- Improved Ion Engine > --- PROPULSION (2) --- Aluminum Leg Aluminum Leg > --- UTILITY (4) ------ High-capacity Storage Unit Structural Scanner Light Armor Plating Hacking Suite > --- WEAPON (2) ------- Improved Assault Rifle Improved Assault Rifle > --- INVENTORY (12) --- Improved Ion Engine Light Angular Momentum Engine Aluminum Leg Aluminum Leg Advanced Heat Sink High-capacity Storage Unit Improved Signal Interpreter Hacking Suite Heavy Laser Light EM Pulse Cannon Light EM Pulse Cannon Rocket Launcher Peak State ------------ > --- POWER ------------ Improved Ion Engine > --- PROPULSION ------- Aluminum Leg Aluminum Leg > --- UTILITY ---------- High-capacity Storage Unit Structural Scanner Light Armor Plating Hacking Suite > --- WEAPON ----------- Improved Assault Rifle Improved Assault Rifle > --- INVENTORY -------- Improved Ion Engine Light Angular Momentum Engine Aluminum Leg Aluminum Leg Advanced Heat Sink High-capacity Storage Unit Improved Signal Interpreter Hacking Suite Heavy Laser Light EM Pulse Cannon Light EM Pulse Cannon Rocket Launcher [Rating: 19] Favorites ----------- Power Improved Ion Engine Engine Improved Ion Engine Propulsion Aluminum Leg Treads Light Treads Leg Aluminum Leg Utility High-capacity Storage Unit Device Structural Scanner Storage High-capacity Storage Unit Hackware Hacking Suite Protection Light Armor Plating Weapon Improved Assault Rifle Energy Gun Medium Laser Energy Cannon Light EM Pulse Cannon Ballistic Gun Improved Assault Rifle Launcher Grenade Launcher Build | -11 -10 -10 -9 -9 -9 -8 ------- Run | Scr Mat Min Mat Min Exi Min Slots Evolved 2 | . . . 2 . . . Power . | . . . . . . . Propulsion . | . . . . . . . Utility 2 | . . . 2 . . . Weapon . | . . . . . . . Parts Attached 47 | . 5 3 33 . 2 4 Power 5 | . 1 . 4 . . . Engine 5 | . 1 . 4 . . . Core . | . . . . . . . Reactor . | . . . . . . . Propulsion 11 | . 1 2 7 . . 1 Treads 5 | . . . 5 . . . Leg 6 | . 1 2 2 . . 1 Wheel . | . . . . . . . Hover . | . . . . . . . Flight . | . . . . . . . Utility 8 | . 1 . 6 . 1 . Device 2 | . . . 2 . . . Storage 2 | . 1 . . . 1 . Processor . | . . . . . . . Hackware 1 | . . . 1 . . . Protection 3 | . . . 3 . . . Artifact . | . . . . . . . Weapon 23 | . 2 1 16 . 1 3 Energy Gun 5 | . . 1 4 . . . Energy Cannon 2 | . . . 2 . . . Ballistic Gun 12 | . 2 . 7 . 1 2 Ballistic Cannon . | . . . . . . . Launcher 4 | . . . 3 . . 1 Special Weapon . | . . . . . . . Impact Weapon . | . . . . . . . Slashing Weapon . | . . . . . . . Piercing Weapon . | . . . . . . . Special Melee Weapon . | . . . . . . . Unidentified Prototypes 1 | . . . 1 . . . Parts Lost 24 | . . 1 21 . . 2 Power 3 | . . . 3 . . . Propulsion 6 | . . . 5 . . 1 Utility 4 | . . . 4 . . . Weapon 11 | . . 1 9 . . 1 Highest Loss Streak 10 | . . 1 10 . . 2 Average Slot Usage (%) 96 | . 95 99 91 100 100 99 Engine 11 | . 14 14 10 11 11 11 Treads 3 | . . . 9 . . . Leg 18 | . 27 28 12 22 22 22 Device 7 | . . . 5 11 11 11 Storage 15 | . 25 28 16 11 11 11 Hackware 5 | . . . . 11 11 11 Protection 10 | . . . 14 11 11 11 Energy Gun 4 | . 14 24 3 . . . Energy Cannon 3 | . . . 7 . . . Ballistic Gun 14 | . 13 3 9 22 22 21 Naked Turns . | . . . . . . . Heaviest Build 52 | 11 45 46 52 49 49 49 Greatest Support 40 | 20 20 20 40 20 20 20 Greatest Overweight (x) 4 | . 4 2 2 2 2 4 Average Overweight (x) 1 | . 1 2 1 2 2 2 Largest Inventory Capacity 14 | . 14 14 14 12 12 12 Average Capacity 12 | . 12 14 13 12 12 12 Most Carried 14 | . 8 14 14 12 12 12 Average Carried 11 | . 5 12 12 12 12 11 Final Capacity 14 | 6 14 14 12 12 12 12 Final Carried 14 | 6 8 14 12 12 12 12 Class Distribution -------------------- 81% | Scavenger-Mutant 18% | Mutant Dominant Class ---------------- Mutant | -10/Materials Scavenger-Mutant | -10/Mines Scavenger-Mutant | -9/Materials Scavenger-Mutant | -9/Mines Scavenger-Mutant | -9/Exiles Scavenger-Mutant | -8/Mines Resources | -11 -10 -10 -9 -9 -9 -8 ----------- Run | Scr Mat Min Mat Min Exi Min Matter Collected 1179 | 200 50 88 643 27 . 171 Remotely . | . . . . . . . Salvage Created 2396 | . 151 138 1776 43 . 288 Parts 182 | . 8 14 132 8 . 20 Haulers Intercepted 4 | . . . 4 . . . Recyclers Shooed . | . . . . . . . Parts Field Recycled . | . . . . . . . Retrieved Matter . | . . . . . . . Parts Self-Destructed . | . . . . . . . Prevented . | . . . . . . . Kills | -11 -10 -10 -9 -9 -9 -8 ------- Run | Scr Mat Min Mat Min Exi Min Combat Hostiles Destroyed 54 | . 2 5 39 2 . 6 Guns 43 | . 2 5 29 2 . 5 Cannons 5 | . . . 5 . . . AOE 6 | . . . 5 . . 1 Classes Destroyed 11 | . 3 1 6 1 . . Worker 6 | . . . 5 . . 1 Builder 4 | . . . 3 . . 1 Tunneler 2 | . . . . 1 . 1 Hauler 4 | . . . 4 . . . Recycler 4 | . 1 . 2 . . 1 Operator 3 | . 1 . 2 . . . Watcher 1 | . . . 1 . . . Swarmer 27 | . . 3 19 2 . 3 Grunt 19 | . 2 2 12 . . 3 Duelist 1 | . . . 1 . . . Sentry 7 | . . . 7 . . . Best Kill Streak 7 | . 3 3 7 2 . 3 Combat Bots Only 6 | . 2 3 6 2 . 3 Max Kills in Single Turn 3 | . 1 1 3 1 . 2 Gunslinging 1 | . . . 1 . . 1 Exploded 3 | . . . 3 . . 1 Melee . | . . . . . . . Uniques/NPCs Destroyed . | . . . . . . . Combat | -11 -10 -10 -9 -9 -9 -8 -------- Run | Scr Mat Min Mat Min Exi Min Damage Taken 3257 | . 85 327 2360 . . 485 Core 489 | . 10 73 324 . . 82 Absorbed by Shields . | . . . . . . . Core Remaining (%) 83 | 100 . 66 . . . . Volleys Fired 191 | . 10 15 139 4 . 23 Largest 2 | . 2 2 2 2 . 2 Hottest 115 | . 70 115 115 46 . 46 Shots Fired 350 | . 20 30 249 8 . 43 Gun 308 | . 20 30 209 8 . 41 Cannon 35 | . . . 35 . . . Launcher 7 | . . . 5 . . 2 Special . | . . . . . . . Kinetic 221 | . 10 11 151 8 . 41 Thermal 87 | . 10 19 58 . . . Explosive 7 | . . . 5 . . 2 Electromagnetic 35 | . . . 35 . . . Robot Hit Streak 21 | . 6 7 21 3 . 7 Robot Miss Streak 4 | . 2 3 4 1 . 4 Penetration Max . | . . . . . . . Secondary Targets 5 | . . 1 3 . . 1 Max Gunslinging Chain 1 | . . 1 1 . . 1 Shots Hit Robots 223 | . 14 18 160 5 . 26 Core Hits 114 | . 8 9 77 3 . 17 Critical Hits 2 | . . . 2 . . . Critical Kills . | . . . . . . . Critical Parts Destroyed 1 | . . . 1 . . . Melee Attacks . | . . . . . . . Impact . | . . . . . . . Slashing . | . . . . . . . Piercing . | . . . . . . . Sneak Attacks . | . . . . . . . Combat Hostiles . | . . . . . . . Follow-up Attacks . | . . . . . . . Damage Inflicted 4135 | . 176 241 2953 73 . 692 Guns 2664 | . 176 241 1762 73 . 412 Cannons 641 | . . . 641 . . . Explosions 830 | . . . 550 . . 280 Melee . | . . . . . . . Ramming . | . . . . . . . Kinetic 1854 | . 64 79 1226 73 . 412 Thermal 935 | . 112 162 661 . . . Explosive 705 | . . . 425 . . 280 Electromagnetic 641 | . . . 641 . . . Impact . | . . . . . . . Slashing . | . . . . . . . Piercing . | . . . . . . . Highest Corruption . | . . . . . . . Average Corruption . | . . . . . . . Corruption Purged . | . . . . . . . Overload Shots . | . . . . . . . Overflow Damage 33 | . . . 18 . . 15 Projectiles 18 | . . . 18 . . . Explosions 15 | . . . . . . 15 Melee . | . . . . . . . Knockbacks . | . . . . . . . Impact . | . . . . . . . Kinetic . | . . . . . . . Secondary . | . . . . . . . Self-Inflicted Damage 127 | . . . 127 . . . Shots 7 | . . . 7 . . . Rammed . | . . . . . . . Targets Rammed . | . . . . . . . Kicked . | . . . . . . . Crushed . | . . . . . . . Highest Temperature 216 | . 111 162 216 . . 42 Average Temperature 45 | . 46 64 44 . . 18 Received Heat Transfer 948 | . 48 165 501 . . 234 Siege Activations . | . . . . . . . Robots Corrupted 1 | . . . 1 . . . Combat Hostiles . | . . . . . . . Parts Fried 4 | . . . 4 . . . Impact Corruptions . | . . . . . . . Robots Melted . | . . . . . . . Combat Hostiles . | . . . . . . . Parts Melted 4 | . . . 4 . . . Heat Transferred 2283 | . 333 481 1469 . . . Parts Sabotaged . | . . . . . . . Parts Stolen . | . . . . . . . Parts Stripped . | . . . . . . . Power Chain Reactions 3 | . . . 3 . . . Missiles Intercepted . | . . . . . . . Alert | -11 -10 -10 -9 -9 -9 -8 ------- Run | Scr Mat Min Mat Min Exi Min Peak Influence 371 | . 75 138 371 246 . 169 Average Influence 171 | . 24 100 226 154 . 125 Maximum Alert Level 1 | . . . 1 1 . . Low Security (%) 65 | . 100 100 38 79 . 100 Level 1 34 | . . . 61 20 . . Level 2 . | . . . . . . . Level 3 . | . . . . . . . Level 4 . | . . . . . . . Level 5 . | . . . . . . . High Security . | . . . . . . . Max Security . | . . . . . . . Squads Dispatched 7 | . 2 . 4 . . 1 Investigation 3 | . 1 . 2 . . . Extermination . | . . . . . . . Reinforcement 4 | . 1 . 2 . . 1 Assault . | . . . . . . . Garrison . | . . . . . . . Intercept . | . . . . . . . Construction Impeded 1 | . . . . . . 1 Haulers Reinforced . | . . . . . . . Stealth | -11 -10 -10 -9 -9 -9 -8 --------- Run | Scr Mat Min Mat Min Exi Min Distress Signals 6 | . 1 . 5 . . . Communications Jammed . | . . . . . . . Distress Signals . | . . . . . . . Times Spotted 89 | . 6 7 64 4 . 8 Peak Tracking Total 9 | . 4 3 9 4 . 3 Tactical Retreats 4 | . . 1 3 . . . Traps | -11 -10 -10 -9 -9 -9 -8 ------- Run | Scr Mat Min Mat Min Exi Min Traps Triggered 4 | . 3 . 1 . . . Indirectly . | . . . . . . . Trap Hack Attempts . | . . . . . . . Triggered . | . . . . . . . Disarmed . | . . . . . . . Reprogrammed . | . . . . . . . Reused . | . . . . . . . Traps Extracted . | . . . . . . . Installed . | . . . . . . . Triggered . | . . . . . . . Machines | -11 -10 -10 -9 -9 -9 -8 ---------- Run | Scr Mat Min Mat Min Exi Min Machines Disabled 3 | . . . 2 . . 1 Max in Single Turn 1 | . . . 1 . . 1 Machines Sabotaged . | . . . . . . . Garrisons Compromised . | . . . . . . . Overloaded Fab Kills . | . . . . . . . Fab Network Shutdowns . | . . . . . . . Hacking | -11 -10 -10 -9 -9 -9 -8 --------- Run | Scr Mat Min Mat Min Exi Min Machines Accessed 9 | . . . 8 . 1 . Terminals 7 | . . . 7 . . . Fabricators . | . . . . . . . Repair Stations . | . . . . . . . Recycling Units . | . . . . . . . Scanalyzers 1 | . . . 1 . . . Garrison Access . | . . . . . . . Total Hacks 30 | . . . 24 . 6 . Successful 20 | . . . 14 . 6 . Failed 10 | . . . 10 . . . Catastrophic 2 | . . . 2 . . . Database Lockouts . | . . . . . . . Manual 26 | . . . 18 . 8 . Terminals 22 | . . . 22 . . . Fabricators . | . . . . . . . Repair Stations . | . . . . . . . Recycling Units . | . . . . . . . Scanalyzers 2 | . . . 2 . . . Garrison Access . | . . . . . . . Terminal Hacks 17 | . . . 11 . 6 . Record 6 | . . . . . 6 . Part Schematic 2 | . . . 2 . . . Branch Access Points 1 | . . . 1 . . . Unreport Threat 2 | . . . 2 . . . Transport Status 3 | . . . 3 . . . Hauler Manifests 1 | . . . 1 . . . Zone Layout 2 | . . . 2 . . . Fabricator Hacks . | . . . . . . . Repair Station Hacks . | . . . . . . . Recycling Unit Hacks . | . . . . . . . Scanalyzer 2 | . . . 2 . . . Insert Component 1 | . . . 1 . . . Analyze 1 | . . . 1 . . . Garrison Access Hacks . | . . . . . . . Unauthorized Hacks 1 | . . . 1 . . . Terminals 1 | . . . 1 . . . Botnet 1 | . . . 1 . . . Fabricators . | . . . . . . . Repair Stations . | . . . . . . . Recycling Units . | . . . . . . . Scanalyzers . | . . . . . . . Garrison Access . | . . . . . . . Data Cores Recovered 1 | . . . 1 . . . Used 1 | . . . 1 . . . Hacking Detections 7 | . . . 7 . . . Full Trace Events . | . . . . . . . Feedback Events . | . . . . . . . Feedback Blocked . | . . . . . . . Robot Schematics Acquired . | . . . . . . . Robots Built . | . . . . . . . Matter . | . . . . . . . Time . | . . . . . . . Total Robot Build Rating . | . . . . . . . Part Schematics Acquired 3 | . . . 3 . . . Parts Built . | . . . . . . . Matter . | . . . . . . . Time . | . . . . . . . Total Part Build Rating . | . . . . . . . Parts Repaired . | . . . . . . . Time . | . . . . . . . Parts Recycled . | . . . . . . . Recycled Matter . | . . . . . . . Retrieved Matter . | . . . . . . . Retrieved Components . | . . . . . . . Parts Scanalyzed 1 | . . . 1 . . . Part Schematics Acquired 1 | . . . 1 . . . Parts Damaged . | . . . . . . . Bothacking | -11 -10 -10 -9 -9 -9 -8 ------------ Run | Scr Mat Min Mat Min Exi Min Used RIF Installer . | . . . . . . . Robots Hacked . | . . . . . . . Non-combat . | . . . . . . . Combat . | . . . . . . . Robot Hacks Applied . | . . . . . . . Relay Couplers Released . | . . . . . . . Robots Rewired . | . . . . . . . Allies Hacked . | . . . . . . . Hacks Repelled . | . . . . . . . Allies | -11 -10 -10 -9 -9 -9 -8 -------- Run | Scr Mat Min Mat Min Exi Min Total Allies 2 | . . . . 2 . . Largest Group 2 | . . . . 2 2 . Highest-Rated Group 47 | . . . . 47 47 . Highest-Rated Ally 31 | . . . . 31 31 . Total Orders . | . . . . . . . Ally Attacks 5 | . . . . 5 . . Total Damage 62 | . . . . 62 . . Kills 2 | . . . . 2 . . Allies Corrupted . | . . . . . . . Allies Melted . | . . . . . . . Intel | -11 -10 -10 -9 -9 -9 -8 ------- Run | Scr Mat Min Mat Min Exi Min Robot Analysis Total . | . . . . . . . Derelict Logs Recovered 2 | . . . . 2 . . Drone Launches . | . . . . . . . Drone Recoveries . | . . . . . . . Exploration | -11 -10 -10 -9 -9 -9 -8 ------------- Run | Scr Mat Min Mat Min Exi Min Turns Passed 3806 | . 254 268 1586 443 770 485 Spaces Moved 1748 | 1 124 115 623 238 426 221 Core . | . . . . . . . Treads 204 | . . . 204 . . . Legs 1544 | 1 124 115 419 238 426 221 Wheels . | . . . . . . . Hover . | . . . . . . . Flight . | . . . . . . . Fastest Speed 120 | 120 120 180 160 180 180 180 Average Speed 178 | 120 158 180 179 180 180 180 Slowest Speed 240 | 120 240 180 180 180 180 240 Overloaded Moves . | . . . . . . . Propulsion Burnouts . | . . . . . . . Robots Hopped . | . . . . . . . Cave-ins Triggered . | . . . . . . . Exploration Rate (%) 46 | 2 26 32 58 56 88 60 Regions Visited 6 Branch Regions 4 Pre-discovered Areas 2 | . . . . 1 1 . Known Exits Taken 1 | . . . 1 . . . Unknown Exits Taken 5 | 1 1 1 . 1 1 . Scrap Searched 2 | . . . . 1 . 1 Spaces Dug . | . . . . . . . Terrain Destroyed 46 | . . . 35 . . 11 Melee . | . . . . . . . Projectile . | . . . . . . . AOE 46 | . . . 35 . . 11 Actions | -11 -10 -10 -9 -9 -9 -8 --------- Run | Scr Mat Min Mat Min Exi Min Total 2107 | . 160 145 862 245 430 265 Wait 56 | . 17 8 14 4 . 13 Move 1742 | . 123 114 622 237 425 221 Hop . | . . . . . . . Pick Up 43 | . 3 5 31 . 1 3 Fast Attach 15 | . 4 . 11 . . . Attach 19 | . . 1 16 . . 2 Detach . | . . . . . . . Swap 13 | . 1 2 6 . 2 2 Drop 28 | . 2 . 23 . 2 1 Fire 191 | . 10 15 139 4 . 23 Melee . | . . . . . . . Ram . | . . . . . . . Kick . | . . . . . . . Crush . | . . . . . . . Escape Stasis . | . . . . . . . Rewire . | . . . . . . . Trap . | . . . . . . . Miscellaneous . | . . . . . . . Route ------- -11/Scrapyard -10/Materials -10/Mines -9/Materials -9/Mines (discovered 2 exits: [*Mat] / *Exi) -9/Exiles -8/Mines History --------- Turn | Location | Event 1 | -11/Scrapyard | Discovered new exit (range 0) 1 | -11/Scrapyard | Entered Materials 223 | -10/Materials | Discovered new exit (range 15) 255 | -10/Materials | Entered Mines 304 | -10/Mines | Build established: Mutant 496 | -10/Mines | Discovered new exit (range 16) 523 | -10/Mines | Entered Materials 523 | -9/Materials | Evolved 2 slots: Utility x2 584 | -9/Materials | Identified exit to Mines 615 | -9/Materials | Build established: Scavenger-Mutant 747 | -9/Materials | Lost 4 parts (1p2n1w) 1016 | -9/Materials | Build established: Mutant 1126 | -9/Materials | Lost 5 parts (1p1n1u2w) 1310 | -9/Materials | Core integrity fell below 50% 1363 | -9/Materials | Lost 10 parts (1p2n2u5w) 1627 | -9/Materials | Build established: Scavenger-Mutant 2008 | -9/Materials | Core integrity fell below 20% 2109 | -9/Materials | Entered Mines 2346 | -9/Mines | Learned location of Recycling (-7) 2351 | -9/Mines | Discovered new exit (range 10) 2538 | -9/Mines | Deemed a non-threat by the Exiles lab entrance 2540 | -9/Mines | Discovered new exit (range 5) 2552 | -9/Mines | Entered Exiles 2552 | -9/Exiles | Accompanied by 2 allies 2582 | -9/Exiles | Led the pair of lost Derelicts to a safe place 2596 | -9/Exiles | Met 8R-AWN 2626 | -9/Exiles | Met EX-HEX 2739 | -9/Exiles | Met EX-DEC 2771 | -9/Exiles | Visited The Gauntlet 3004 | -9/Exiles | Learned location of Zion (-7) 3043 | -9/Exiles | Met EX-BIN 3295 | -9/Exiles | Discovered new exit (range 14) 3322 | -9/Exiles | Entered Mines 3807 | -8/Mines | Destroyed by G-47 Trooper with Particle Gun Last Messages --------------- 03448_ U-05 Engineer lays Concrete. 03451_ R-06 Scavenger destroyed. 03451_ U-05 Engineer lays Concrete. 03454_ Dropped Imp. Ion Engine. 03454_ Acquired Hvy. Laser. 03454_ U-05 Engineer lays Concrete. 03455_ Acquired 23 matter. 03455_ U-05 Engineer lays Concrete. 03465_ U-05 Engineer builds a Wall. 03693_ K-01 Serf collects debris. 03749_ ALERT: Construction progress impeded, dispatching reinforcements to local area. 03753_ U-05 Engineer destroyed. 03753_ K-01 Serf destroyed. 03756_ K-01 Serf collects debris. 03757_ U-05 Engineer lays Concrete. 03759_ U-05 Engineer builds a Wall. 03763_ U-05 Engineer lays Concrete. 03773_ Acquired 12 matter. 03791_ K-01 Serf collects debris. Map ----- +----------------------------------------------------+ | ?????????????????????????????????# | | ???????????????????????####??????# ### | | ?????????????????? ???? #??????# #??# | | ??????????????????" ?"" #??????# ###### | | ????????????????""" """ #??????# ##?## | | ??????????????? """ """ #??????# #??# | | ??????????????? #??##### #??? | | ??????????????? """ """ #?## #??? | | ????????????????""" """ #?# ##?## | | ??????????????????" "* #?# ##### | | ????????????????????=% ???# ##? # | | ?????????????????????#%###### ##=% | | ?????????????????????#%%t[ ### | | ?????????????????????# ##### %! ! | | ?????????????????????#!!#???# * %! | | ???????????????????###%=#???## ### *= | | ??????????????????## % #????# ## # | | ?????????????????## #????# ##### | | ?????????????????# ##????# ###?### | | ?????????????????# ##???### ###??# | | ?????????????????# ##???## ##??### | | ???????????????? ?????# ##???? | | ???????????????### #?????# #???? | | ???????????????### #?????# #???? | | ????????????????gg #??????# ##### | | ????????????????##@ #???????# | | ?????????????????# #?????### | | ?????????????????#k ####### """ ##### | | ?????????????????# """ #???? | | ?????????????????# """ #???? | | ?????????????????### ##### #???? | | ???????????????????# #???## ##???? | | ?????????########### ###### ## #????? | | ?????????# =%! *%! #### ##????? | | ?????????# ################= ##??####?????? | | ?????????# #??????????????# #????????????? | | ????????? #??????????????# #????????????? | | ????????# ??????????????# #????????????? | | ????????####??????????????# ????????????? | | ??????????????????????????## ????????????? | | ???????????????????????????# ????????????? | | ???????????????????????????? ????????????? | | ???????????????????????????? ????????????? | | ???????????????????????????? ???????????? | | ???????????????????????????? ???????????? | | ???????????????????????????? ????????????? | | ??????????????????????????????????????????? | | ??????????????????????????????????????????? | | ??????????????????????????????????????????? | | ??????????????????????????????????????????? | +----------------------------------------------------+ Best States ------------- Heat Dissipation 38 Energy Generation 12 Energy Capacity 265 Matter Stores 300 Matter Capacity 300 Sight Range 16 Terrain Scan Density 10 Armor Coverage 150 Core Shielding 20 Evasion (%) 40 Recoil Reduction 2 Offensive Hacking 10 Item Schematics ----------------- Lrg. Storage Unit | -9/Materials | Hacked Med. Storage Unit | -9/Materials | Hacked Hacking Suite | -9/Materials | Scanalyzed Robot Schematics ------------------ None Fabricated ------------ Nothing Alien Tech Used ----------------- None Achievements -------------- None Challenges ------------ None Game ------ Seed RocketLightClaw Manual? 0 Play Time 00:20:40 Cumulative 321.3 hours Start 2020.07.01 @ 17:25:31 End 2020.07.01 @ 17:44:22 Sessions 1 Manual Loads 0 Difficulty Rogue Special Mode None Game No. 355 Rogue 355 Adventurer 0 Explorer 0 Win Type - Total 29 Types 17/3/2/1/2/1/3 Lore% 93 Gallery% 88 Achievement% 78 Wizard Run 0 Options --------- ASCII 0 Keyboard 0 Movement Arrows Keybinds 0 Fullscreen 2 Font 18/SmallcapsGlow Map View 76x50 Tactical HUD 1 Map Filters NONE Filters NONE Steam 1 RUN: f6217bd4-5f70-479d-bc28-5fbf84b08e53